[Event "Early-Titled-Tuesday-Blitz-January-16-2024"]
[Site "Chess.com"]
[Date "2024.01.16"]
[Round "2"]
[White "oganromchess"]
[Black "margarita_2703"]
[Result "1/2-1/2"]
[WhiteElo "2527"]
[BlackElo "2297"]
[TimeControl "180+1"]
[EndTime "8:21:29 PST"]
[Termination "Game drawn by stalemate"]

1. e4 {[%clk 0:03:00]} 1... e5 {[%clk 0:02:59.4]} 2. Nf3 {[%clk 0:02:58.6]} 2...
Nc6 {[%clk 0:02:44.4]} 3. d4 {[%clk 0:02:58.3]} 3... exd4 {[%clk 0:02:43.7]} 4.
Nxd4 {[%clk 0:02:59.2]} 4... Bb4+ {[%clk 0:02:32.6]} 5. c3 {[%clk 0:02:21.5]}
5... Bc5 {[%clk 0:02:31.7]} 6. Na3 {[%clk 0:02:12.6]} 6... Bxa3 {[%clk
0:02:20.2]} 7. bxa3 {[%clk 0:02:13.5]} 7... Nf6 {[%clk 0:02:18.2]} 8. Bd3 {[%clk
0:02:10.3]} 8... Qe7 {[%clk 0:00:15.2]} 9. O-O {[%clk 0:02:05.9]} 9... d6 {[%clk
0:00:12]} 10. Re1 {[%clk 0:01:59]} 10... O-O {[%clk 0:00:11.7]} 11. Bg5 {[%clk
0:01:57.5]} 11... h6 {[%clk 0:00:11.6]} 12. Bh4 {[%clk 0:01:57]} 12... Re8
{[%clk 0:00:11.5]} 13. Nxc6 {[%clk 0:01:46]} 13... bxc6 {[%clk 0:00:12.4]} 14.
Qf3 {[%clk 0:01:44.8]} 14... Qe5 {[%clk 0:00:11.5]} 15. Bg3 {[%clk 0:01:34.1]}
15... Qe6 {[%clk 0:00:10.4]} 16. e5 {[%clk 0:01:32.8]} 16... dxe5 {[%clk
0:00:10.2]} 17. Rxe5 {[%clk 0:01:27.3]} 17... Qd7 {[%clk 0:00:10]} 18. Rd1
{[%clk 0:01:25.2]} 18... Rxe5 {[%clk 0:00:09.5]} 19. Bxe5 {[%clk 0:01:21]} 19...
Qe7 {[%clk 0:00:09.9]} 20. Bxf6 {[%clk 0:01:19.7]} 20... Qxf6 {[%clk 0:00:10.8]}
21. Qe4 {[%clk 0:01:05.8]} 21... g6 {[%clk 0:00:09.1]} 22. Qe8+ {[%clk 0:00:56]}
22... Kg7 {[%clk 0:00:10]} 23. Bc4 {[%clk 0:00:40.3]} 23... Bb7 {[%clk
0:00:08.8]} 24. Qd7 {[%clk 0:00:37.7]} 24... c5 {[%clk 0:00:08.1]} 25. Qxc7
{[%clk 0:00:27.8]} 25... Be4 {[%clk 0:00:08]} 26. Qxc5 {[%clk 0:00:21.7]} 26...
Re8 {[%clk 0:00:07.4]} 27. f3 {[%clk 0:00:20.6]} 27... Bf5 {[%clk 0:00:07.4]}
28. Qd4 {[%clk 0:00:20.5]} 28... Qxd4+ {[%clk 0:00:06.7]} 29. cxd4 {[%clk
0:00:21.4]} 29... Be6 {[%clk 0:00:07]} 30. d5 {[%clk 0:00:20.8]} 30... Rd8
{[%clk 0:00:06.3]} 31. Kf2 {[%clk 0:00:19.6]} 31... Bf5 {[%clk 0:00:06.8]} 32.
Re1 {[%clk 0:00:18.2]} 32... Bd7 {[%clk 0:00:07.7]} 33. Re7 {[%clk 0:00:17.7]}
33... Kf6 {[%clk 0:00:08.6]} 34. d6 {[%clk 0:00:17.7]} 34... Be6 {[%clk
0:00:08]} 35. Bxe6 {[%clk 0:00:16.5]} 35... fxe6 {[%clk 0:00:08.9]} 36. Rxa7
{[%clk 0:00:17.1]} 36... Rxd6 {[%clk 0:00:09.6]} 37. Ke3 {[%clk 0:00:16.2]}
37... Rb6 {[%clk 0:00:09.3]} 38. Kf2 {[%clk 0:00:09.2]} 38... Rb2+ {[%clk
0:00:07.9]} 39. Kg3 {[%clk 0:00:09.6]} 39... Rxa2 {[%clk 0:00:08.8]} 40. a4
{[%clk 0:00:10.5]} 40... h5 {[%clk 0:00:09.1]} 41. h4 {[%clk 0:00:09.7]} 41...
Ra3 {[%clk 0:00:08.4]} 42. a5 {[%clk 0:00:09.7]} 42... Ra4 {[%clk 0:00:07.6]}
43. Ra8 {[%clk 0:00:09.2]} 43... Kg7 {[%clk 0:00:07.8]} 44. a6 {[%clk
0:00:09.4]} 44... e5 {[%clk 0:00:06.8]} 45. Kf2 {[%clk 0:00:08.1]} 45... Ra3
{[%clk 0:00:06.9]} 46. g3 {[%clk 0:00:07.7]} 46... Kh7 {[%clk 0:00:06.5]} 47. a7
{[%clk 0:00:06.9]} 47... Kg7 {[%clk 0:00:06.9]} 48. Ke2 {[%clk 0:00:07.4]} 48...
Kh7 {[%clk 0:00:07.4]} 49. Kd2 {[%clk 0:00:07.9]} 49... Kg7 {[%clk 0:00:07.8]}
50. Kc2 {[%clk 0:00:08.8]} 50... Kh7 {[%clk 0:00:08]} 51. Kb2 {[%clk 0:00:09.2]}
51... Ra6 {[%clk 0:00:08.1]} 52. Kb3 {[%clk 0:00:09.4]} 52... Ra1 {[%clk
0:00:07.3]} 53. Kc4 {[%clk 0:00:09.7]} 53... Kg7 {[%clk 0:00:07.2]} 54. Kd5
{[%clk 0:00:10.1]} 54... Ra5+ {[%clk 0:00:07]} 55. Ke6 {[%clk 0:00:10.1]} 55...
Kh7 {[%clk 0:00:06.9]} 56. Kf6 {[%clk 0:00:10.2]} 56... Ra6+ {[%clk 0:00:06.4]}
57. Kg5 {[%clk 0:00:09.7]} 57... Kg7 {[%clk 0:00:06]} 58. Re8 {[%clk 0:00:06.9]}
58... Rxa7 {[%clk 0:00:05.8]} 59. Rxe5 {[%clk 0:00:07]} 59... Rf7 {[%clk
0:00:05.7]} 60. f4 {[%clk 0:00:06.8]} 60... Kh7 {[%clk 0:00:04.4]} 61. f5 {[%clk
0:00:06.9]} 61... gxf5 {[%clk 0:00:04.4]} 62. Rxf5 {[%clk 0:00:07.1]} 62... Rg7+
{[%clk 0:00:05.3]} 63. Kf4 {[%clk 0:00:07.1]} 63... Rg4+ {[%clk 0:00:05.9]} 64.
Kf3 {[%clk 0:00:06.7]} 64... Rb4 {[%clk 0:00:06.8]} 65. Rxh5+ {[%clk 0:00:06.7]}
65... Kg6 {[%clk 0:00:07]} 66. Rg5+ {[%clk 0:00:07.6]} 66... Kh6 {[%clk
0:00:07.1]} 67. Kg2 {[%clk 0:00:08.2]} 67... Rb2+ {[%clk 0:00:07.4]} 68. Kh3
{[%clk 0:00:09.1]} 68... Rb3 {[%clk 0:00:08.3]} 69. Rg4 {[%clk 0:00:09.3]} 69...
Rc3 {[%clk 0:00:08.4]} 70. Rf4 {[%clk 0:00:10.2]} 70... Rd3 {[%clk 0:00:08.7]}
71. Ra4 {[%clk 0:00:10.2]} 71... Rc3 {[%clk 0:00:09]} 72. Ra6+ {[%clk
0:00:10.3]} 72... Kh5 {[%clk 0:00:09.2]} 73. Ra5+ {[%clk 0:00:10.5]} 73... Kh6
{[%clk 0:00:09.6]} 74. Kg4 {[%clk 0:00:11.4]} 74... Rc4+ {[%clk 0:00:09.5]} 75.
Kf3 {[%clk 0:00:11.8]} 75... Rc3+ {[%clk 0:00:09.9]} 76. Kf4 {[%clk 0:00:12.7]}
76... Rc4+ {[%clk 0:00:10.3]} 77. Kf5 {[%clk 0:00:12.6]} 77... Kh5 {[%clk
0:00:10.4]} 78. Re5 {[%clk 0:00:09.3]} 78... Rg4 {[%clk 0:00:08.5]} 79. Kf6+
{[%clk 0:00:08.8]} 79... Kh6 {[%clk 0:00:08.2]} 80. Rg5 {[%clk 0:00:08.1]} 80...
Ra4 {[%clk 0:00:06.6]} 81. Rg8 {[%clk 0:00:08.1]} 81... Ra6+ {[%clk 0:00:06.3]}
82. Kf5 {[%clk 0:00:08.1]} 82... Ra5+ {[%clk 0:00:06.6]} 83. Kg4 {[%clk
0:00:08.1]} 83... Ra4+ {[%clk 0:00:05.9]} 84. Kh3 {[%clk 0:00:08.4]} 84... Ra3
{[%clk 0:00:06.4]} 85. Rd8 {[%clk 0:00:07.5]} 85... Kh5 {[%clk 0:00:05.7]} 86.
Rd5+ {[%clk 0:00:07]} 86... Kh6 {[%clk 0:00:06.1]} 87. Rf5 {[%clk 0:00:07]}
87... Rb3 {[%clk 0:00:05.4]} 88. Kg4 {[%clk 0:00:07.3]} 88... Rb4+ {[%clk
0:00:05.8]} 89. Rf4 {[%clk 0:00:07.5]} 89... Rb5 {[%clk 0:00:06.2]} 90. h5
{[%clk 0:00:05.6]} 90... Rg5+ {[%clk 0:00:03.8]} 91. Kf3 {[%clk 0:00:02.4]}
91... Rxh5 {[%clk 0:00:04.7]} 92. Rh4 {[%clk 0:00:02.5]} 92... Rxh4 {[%clk
0:00:04.8]} 93. gxh4 {[%clk 0:00:03.4]} 93... Kh5 {[%clk 0:00:05.7]} 94. Kg3
{[%clk 0:00:04.2]} 94... Kh6 {[%clk 0:00:06.4]} 95. Kh3 {[%clk 0:00:05.1]} 95...
Kh7 {[%clk 0:00:07.3]} 96. Kg4 {[%clk 0:00:05.8]} 96... Kh8 {[%clk 0:00:08.2]}
97. Kg5 {[%clk 0:00:06.7]} 97... Kg8 {[%clk 0:00:09.1]} 98. h5 {[%clk
0:00:07.5]} 98... Kh8 {[%clk 0:00:10]} 99. h6 {[%clk 0:00:08.4]} 99... Kg8
{[%clk 0:00:10.9]} 100. Kg6 {[%clk 0:00:09.3]} 100... Kh8 {[%clk 0:00:11.8]}
101. h7 {[%clk 0:00:10.2]} 1/2-1/2

[Event "Early-Titled-Tuesday-Blitz-January-16-2024"]
[Site "Chess.com"]
[Date "2024.01.16"]
[Round "3"]
[White "Martial2008"]
[Black "Fandorine"]
[Result "0-1"]
[WhiteElo "2727"]
[BlackElo "2997"]
[TimeControl "180+1"]
[EndTime "8:23:23 PST"]
[Termination "Fandorine won by resignation"]

1. d4 {[%clk 0:03:00.9]} 1... Nf6 {[%clk 0:02:59.4]} 2. Nf3 {[%clk 0:02:55.3]}
2... g6 {[%clk 0:02:58.3]} 3. Bg5 {[%clk 0:02:55.3]} 3... Bg7 {[%clk 0:02:54]}
4. Nbd2 {[%clk 0:02:55.2]} 4... O-O {[%clk 0:02:49.6]} 5. c3 {[%clk 0:02:55.8]}
5... d6 {[%clk 0:02:49.8]} 6. e4 {[%clk 0:02:56.1]} 6... Nc6 {[%clk 0:02:48.2]}
7. Bd3 {[%clk 0:02:55.6]} 7... Qe8 {[%clk 0:02:48.4]} 8. O-O {[%clk 0:02:55.5]}
8... e5 {[%clk 0:02:48.7]} 9. dxe5 {[%clk 0:02:55.9]} 9... Nxe5 {[%clk
0:02:48.6]} 10. Nxe5 {[%clk 0:02:56]} 10... Qxe5 {[%clk 0:02:48.9]} 11. Nf3
{[%clk 0:02:55.1]} 11... Qa5 {[%clk 0:02:49.4]} 12. Re1 {[%clk 0:02:43.8]} 12...
Bg4 {[%clk 0:02:46.4]} 13. h3 {[%clk 0:02:41.9]} 13... Bxf3 {[%clk 0:02:46.1]}
14. Qxf3 {[%clk 0:02:42.8]} 14... Qxg5 {[%clk 0:02:46.1]} 0-1

[Event "Early-Titled-Tuesday-Blitz-January-16-2024"]
[Site "Chess.com"]
[Date "2024.01.16"]
[Round "3"]
[White "Allion2017"]
[Black "UK_23"]
[Result "0-1"]
[WhiteElo "2018"]
[BlackElo "2372"]
[TimeControl "180+1"]
[EndTime "8:23:38 PST"]
[Termination "UK_23 won by resignation"]

1. d4 {[%clk 0:02:55]} 1... d5 {[%clk 0:03:00]} 2. e4 {[%clk 0:02:54.3]} 2... c6
{[%clk 0:02:59.3]} 3. Nc3 {[%clk 0:02:54.2]} 3... dxe4 {[%clk 0:02:59.6]} 4.
Nxe4 {[%clk 0:02:54.8]} 4... Nf6 {[%clk 0:02:59.7]} 5. Nxf6+ {[%clk 0:02:54.7]}
5... exf6 {[%clk 0:03:00.6]} 6. Nf3 {[%clk 0:02:54.7]} 6... Bd6 {[%clk
0:03:00.3]} 7. Be2 {[%clk 0:02:54.9]} 7... O-O {[%clk 0:03:00.9]} 8. O-O {[%clk
0:02:55.4]} 8... Bg4 {[%clk 0:03:00.7]} 9. c4 {[%clk 0:02:54.9]} 9... Nd7 {[%clk
0:02:59.8]} 10. Be3 {[%clk 0:02:54.7]} 10... Re8 {[%clk 0:02:59.9]} 11. h3
{[%clk 0:02:53.5]} 11... Bh5 {[%clk 0:02:59.8]} 12. Qc2 {[%clk 0:02:53]} 12...
Nf8 {[%clk 0:02:54.7]} 13. Rad1 {[%clk 0:02:52.7]} 13... Bc7 {[%clk 0:02:54.7]}
14. Rfe1 {[%clk 0:02:49.4]} 14... Qd6 {[%clk 0:02:48]} 15. g3 {[%clk 0:02:43.9]}
15... Rxe3 {[%clk 0:02:43]} 16. c5 {[%clk 0:02:37]} 16... Rxe2 {[%clk
0:02:41.3]} 0-1

[Event "Early-Titled-Tuesday-Blitz-January-16-2024"]
[Site "Chess.com"]
[Date "2024.01.16"]
[Round "3"]
[White "OriTaichman"]
[Black "SHIVACalypso"]
[Result "1/2-1/2"]
[WhiteElo "2655"]
[BlackElo "2470"]
[TimeControl "180+1"]
[EndTime "8:24:21 PST"]
[Termination "Game drawn by repetition"]

1. e4 {[%clk 0:02:54.1]} 1... e6 {[%clk 0:02:59.8]} 2. d4 {[%clk 0:02:50.1]}
2... d5 {[%clk 0:02:57.5]} 3. Nc3 {[%clk 0:02:50.6]} 3... Nf6 {[%clk 0:02:56.6]}
4. Bg5 {[%clk 0:02:50.1]} 4... Be7 {[%clk 0:02:55.8]} 5. e5 {[%clk 0:02:50.1]}
5... Nfd7 {[%clk 0:02:55.4]} 6. Bxe7 {[%clk 0:02:51]} 6... Kxe7 {[%clk
0:02:52.3]} 7. f4 {[%clk 0:02:51.9]} 7... Re8 {[%clk 0:02:50.8]} 8. Qg4 {[%clk
0:02:48.7]} 8... Kf8 {[%clk 0:02:49.3]} 9. Bd3 {[%clk 0:02:47.1]} 9... Kg8
{[%clk 0:02:46]} 10. Nf3 {[%clk 0:02:46.6]} 10... c5 {[%clk 0:02:42.2]} 11.
Bxh7+ {[%clk 0:02:43.6]} 11... Kxh7 {[%clk 0:02:41.5]} 12. Ng5+ {[%clk
0:02:39.4]} 12... Kg8 {[%clk 0:02:39.6]} 13. Qh5 {[%clk 0:02:38.4]} 13... Nf8
{[%clk 0:02:36.2]} 14. Qxf7+ {[%clk 0:02:37.2]} 14... Kh8 {[%clk 0:02:35.8]} 15.
Nb5 {[%clk 0:02:17.3]} 15... Qa5+ {[%clk 0:02:28.4]} 16. c3 {[%clk 0:02:12.9]}
16... Qxb5 {[%clk 0:02:28]} 17. Qh5+ {[%clk 0:02:13.1]} 17... Kg8 {[%clk
0:02:27.8]} 18. Qf7+ {[%clk 0:02:13.4]} 18... Kh8 {[%clk 0:02:28]} 19. Qh5+
{[%clk 0:02:04.2]} 19... Kg8 {[%clk 0:02:28.3]} 20. Qf7+ {[%clk 0:01:56.2]}
20... Kh8 {[%clk 0:02:27.8]} 1/2-1/2

[Event "Early-Titled-Tuesday-Blitz-January-16-2024"]
[Site "Chess.com"]
[Date "2024.01.16"]
[Round "3"]
[White "Durarbayli"]
[Black "Cheer_Down"]
[Result "1-0"]
[WhiteElo "2839"]
[BlackElo "2527"]
[TimeControl "180+1"]
[EndTime "8:25:23 PST"]
[Termination "Durarbayli won by checkmate"]

1. c4 {[%clk 0:03:00.9]} 1... e6 {[%clk 0:02:59.3]} 2. e4 {[%clk 0:02:59.6]}
2... d5 {[%clk 0:02:58.8]} 3. exd5 {[%clk 0:03:00.5]} 3... exd5 {[%clk
0:02:58.7]} 4. d4 {[%clk 0:03:01.4]} 4... Nf6 {[%clk 0:02:57.4]} 5. Nc3 {[%clk
0:03:01.7]} 5... Bb4 {[%clk 0:02:55.7]} 6. cxd5 {[%clk 0:03:01.1]} 6... O-O
{[%clk 0:02:51.7]} 7. Bd3 {[%clk 0:03:00.8]} 7... Nxd5 {[%clk 0:02:45.4]} 8. Ne2
{[%clk 0:03:00.4]} 8... Nd7 {[%clk 0:02:28.1]} 9. O-O {[%clk 0:02:58.1]} 9...
Nxc3 {[%clk 0:02:25.9]} 10. bxc3 {[%clk 0:02:58.1]} 10... Bd6 {[%clk 0:02:25.3]}
11. Ng3 {[%clk 0:02:54]} 11... g6 {[%clk 0:02:22.2]} 12. Ne4 {[%clk 0:02:50.8]}
12... Be7 {[%clk 0:02:22.1]} 13. Bh6 {[%clk 0:02:38.8]} 13... Re8 {[%clk
0:02:21.7]} 14. Qf3 {[%clk 0:02:38.9]} 14... Nf6 {[%clk 0:02:19.6]} 15. Bc4
{[%clk 0:02:36.5]} 15... Be6 {[%clk 0:02:09.8]} 16. Bxe6 {[%clk 0:02:35.9]}
16... fxe6 {[%clk 0:02:10.1]} 17. Nxf6+ {[%clk 0:02:34.3]} 17... Bxf6 {[%clk
0:02:10.4]} 18. Qxb7 {[%clk 0:02:34.9]} 18... Qd5 {[%clk 0:02:10.2]} 19. Qxc7
{[%clk 0:02:26.3]} 19... Rec8 {[%clk 0:02:02.7]} 20. Qf4 {[%clk 0:02:26.1]}
20... Bg7 {[%clk 0:01:52.1]} 21. Bxg7 {[%clk 0:02:25.8]} 21... Kxg7 {[%clk
0:01:53]} 22. Qe3 {[%clk 0:02:23.3]} 22... Rc6 {[%clk 0:01:51.6]} 23. Rfb1
{[%clk 0:02:09.9]} 23... Rac8 {[%clk 0:01:50]} 24. Rb7+ {[%clk 0:02:08.8]} 24...
Kh8 {[%clk 0:01:45.2]} 25. Qh6 {[%clk 0:01:50]} 25... R6c7 {[%clk 0:01:45.3]}
26. Rxc7 {[%clk 0:01:49.8]} 26... Rxc7 {[%clk 0:01:45.3]} 27. Qf8# {[%clk
0:01:50.4]} 1-0

[Event "Early-Titled-Tuesday-Blitz-January-16-2024"]
[Site "Chess.com"]
[Date "2024.01.16"]
[Round "3"]
[White "igorkovalenko"]
[Black "Iball95"]
[Result "0-1"]
[WhiteElo "2997"]
[BlackElo "2753"]
[TimeControl "180+1"]
[EndTime "8:25:34 PST"]
[Termination "Iball95 won by resignation"]

1. c4 {[%clk 0:03:00.9]} 1... e6 {[%clk 0:02:59.7]} 2. Nf3 {[%clk 0:03:00.3]}
2... d5 {[%clk 0:03:00.2]} 3. g3 {[%clk 0:03:01.2]} 3... Nf6 {[%clk 0:02:59.8]}
4. Bg2 {[%clk 0:03:02.1]} 4... c5 {[%clk 0:03:00.3]} 5. O-O {[%clk 0:03:01.8]}
5... Nc6 {[%clk 0:03:00.5]} 6. b3 {[%clk 0:03:01.5]} 6... Be7 {[%clk 0:02:59.1]}
7. e3 {[%clk 0:03:00.8]} 7... O-O {[%clk 0:02:59.4]} 8. Qe2 {[%clk 0:03:00.8]}
8... b6 {[%clk 0:02:54.7]} 9. Bb2 {[%clk 0:03:00.6]} 9... Bb7 {[%clk 0:02:54.3]}
10. d3 {[%clk 0:02:53.2]} 10... Re8 {[%clk 0:02:52]} 11. Nbd2 {[%clk 0:02:52.6]}
11... Qc7 {[%clk 0:02:51.7]} 12. Rad1 {[%clk 0:02:50.3]} 12... Rad8 {[%clk
0:02:51.2]} 13. a3 {[%clk 0:02:50.6]} 13... a6 {[%clk 0:02:50.5]} 14. h3 {[%clk
0:02:44.8]} 14... b5 {[%clk 0:02:47]} 15. g4 {[%clk 0:02:44.9]} 15... Qb6 {[%clk
0:02:34.7]} 16. g5 {[%clk 0:02:39.5]} 16... Nh5 {[%clk 0:02:33.1]} 17. cxd5
{[%clk 0:02:37.6]} 17... exd5 {[%clk 0:02:34]} 18. b4 {[%clk 0:02:15.8]} 18...
c4 {[%clk 0:02:16]} 19. h4 {[%clk 0:02:09.4]} 19... Bd6 {[%clk 0:02:04.4]} 20.
Nd4 {[%clk 0:02:02.6]} 20... Nf4 {[%clk 0:02:00.6]} 21. Qg4 {[%clk 0:02:00.9]}
21... Nxd3 {[%clk 0:01:52.2]} 22. Ba1 {[%clk 0:02:00.6]} 22... Nxd4 {[%clk
0:01:46]} 23. Bxd4 {[%clk 0:02:00]} 23... Qc7 {[%clk 0:01:45.9]} 24. Nf3 {[%clk
0:01:56.7]} 24... Bc8 {[%clk 0:01:35.3]} 25. Qh5 {[%clk 0:01:56.6]} 25... g6
{[%clk 0:01:35.8]} 26. Qh6 {[%clk 0:01:55.1]} 26... Bf8 {[%clk 0:01:36.4]} 0-1

[Event "Early-Titled-Tuesday-Blitz-January-16-2024"]
[Site "Chess.com"]
[Date "2024.01.16"]
[Round "3"]
[White "pavet"]
[Black "dropstoneDP"]
[Result "1/2-1/2"]
[WhiteElo "2779"]
[BlackElo "3043"]
[TimeControl "180+1"]
[EndTime "8:25:52 PST"]
[Termination "Game drawn by agreement"]

1. e4 {[%clk 0:03:00.9]} 1... e5 {[%clk 0:02:59.8]} 2. Nf3 {[%clk 0:03:00.7]}
2... Nf6 {[%clk 0:02:59.5]} 3. Nxe5 {[%clk 0:02:57.8]} 3... d6 {[%clk
0:02:59.4]} 4. Nf3 {[%clk 0:02:58.1]} 4... Nxe4 {[%clk 0:02:59.1]} 5. d3 {[%clk
0:02:58.6]} 5... Nf6 {[%clk 0:02:59.2]} 6. d4 {[%clk 0:02:59.2]} 6... d5 {[%clk
0:02:58.5]} 7. Bd3 {[%clk 0:02:59.8]} 7... Bd6 {[%clk 0:02:57]} 8. Qe2+ {[%clk
0:03:00.1]} 8... Be7 {[%clk 0:02:57.1]} 9. O-O {[%clk 0:02:59.7]} 9... O-O
{[%clk 0:02:57.2]} 10. Bf4 {[%clk 0:02:59.4]} 10... c5 {[%clk 0:02:54.7]} 11. c3
{[%clk 0:02:59.3]} 11... Nc6 {[%clk 0:02:54.4]} 12. dxc5 {[%clk 0:02:50.4]}
12... Bxc5 {[%clk 0:02:55.3]} 13. Nbd2 {[%clk 0:02:50.7]} 13... Re8 {[%clk
0:02:55.3]} 14. Qd1 {[%clk 0:02:51]} 14... Bg4 {[%clk 0:02:53.8]} 15. Qc2 {[%clk
0:02:46]} 15... Rc8 {[%clk 0:02:52.5]} 16. Rae1 {[%clk 0:02:44.1]} 16... Rxe1
{[%clk 0:02:52.7]} 17. Rxe1 {[%clk 0:02:44.1]} 17... d4 {[%clk 0:02:31.7]} 18.
Ne5 {[%clk 0:02:26]} 18... Nxe5 {[%clk 0:02:30.3]} 19. Bxe5 {[%clk 0:02:24.8]}
19... dxc3 {[%clk 0:02:30.8]} 20. Bxc3 {[%clk 0:02:18.7]} 20... Bd4 {[%clk
0:02:25.8]} 21. Ne4 {[%clk 0:02:12.9]} 21... Nxe4 {[%clk 0:02:19.9]} 22. Bxe4
{[%clk 0:02:08.9]} 22... Bxc3 {[%clk 0:02:12.4]} 23. bxc3 {[%clk 0:02:06.6]}
23... g6 {[%clk 0:02:00.8]} 24. Bxb7 {[%clk 0:01:59.9]} 24... Rc7 {[%clk
0:02:00.3]} 25. Be4 {[%clk 0:01:57.9]} 25... Be6 {[%clk 0:01:56.5]} 26. h3
{[%clk 0:01:51.6]} 26... Qf6 {[%clk 0:01:53.8]} 27. Re3 {[%clk 0:01:48.8]} 27...
Kg7 {[%clk 0:01:54.3]} 28. Qd2 {[%clk 0:01:43.4]} 28... Rc4 {[%clk 0:01:49.7]}
29. Bd5 {[%clk 0:01:36.7]} 29... Bxd5 {[%clk 0:01:49.1]} 30. Qxd5 {[%clk
0:01:36.2]} 30... Rxc3 {[%clk 0:01:49.3]} 31. Rxc3 {[%clk 0:01:33.4]} 31... Qxc3
{[%clk 0:01:50.2]} 32. g3 {[%clk 0:01:32.3]} 1/2-1/2

[Event "Early-Titled-Tuesday-Blitz-January-16-2024"]
[Site "Chess.com"]
[Date "2024.01.16"]
[Round "3"]
[White "Danito1954"]
[Black "Chessbard1972"]
[Result "0-1"]
[WhiteElo "2140"]
[BlackElo "2406"]
[TimeControl "180+1"]
[EndTime "8:26:17 PST"]
[Termination "Chessbard1972 won by checkmate"]

1. e4 {[%clk 0:02:57.6]} 1... c5 {[%clk 0:02:58]} 2. Nc3 {[%clk 0:02:55.1]} 2...
a6 {[%clk 0:02:57.5]} 3. d4 {[%clk 0:02:52.4]} 3... cxd4 {[%clk 0:02:55.5]} 4.
Qxd4 {[%clk 0:02:53.3]} 4... Nc6 {[%clk 0:02:55]} 5. Qd3 {[%clk 0:02:52.1]} 5...
Nf6 {[%clk 0:02:53.5]} 6. Bf4 {[%clk 0:02:52.1]} 6... d6 {[%clk 0:02:51.6]} 7.
O-O-O {[%clk 0:02:50]} 7... Qa5 {[%clk 0:02:43.3]} 8. Kb1 {[%clk 0:02:46.8]}
8... g6 {[%clk 0:02:35.2]} 9. h4 {[%clk 0:02:44.1]} 9... h5 {[%clk 0:02:34.4]}
10. f3 {[%clk 0:02:43.8]} 10... Bg7 {[%clk 0:02:34.1]} 11. Nge2 {[%clk
0:02:41.2]} 11... O-O {[%clk 0:02:32.9]} 12. Rg1 {[%clk 0:02:08.5]} 12... Be6
{[%clk 0:02:30.5]} 13. a3 {[%clk 0:01:53.3]} 13... b5 {[%clk 0:02:23.6]} 14. Qd2
{[%clk 0:01:41.7]} 14... b4 {[%clk 0:02:21.9]} 15. Na2 {[%clk 0:00:42.2]} 15...
Rfb8 {[%clk 0:02:11.2]} 16. axb4 {[%clk 0:00:20.1]} 16... Qxa2+ {[%clk
0:02:02.3]} 17. Kc1 {[%clk 0:00:19.7]} 17... Qa1# {[%clk 0:02:02.5]} 0-1

[Event "Early-Titled-Tuesday-Blitz-January-16-2024"]
[Site "Chess.com"]
[Date "2024.01.16"]
[Round "3"]
[White "Genghis_K"]
[Black "doctorcristian"]
[Result "1-0"]
[WhiteElo "2852"]
[BlackElo "2561"]
[TimeControl "180+1"]
[EndTime "8:26:22 PST"]
[Termination "Genghis_K won by resignation"]

1. e4 {[%clk 0:02:48]} 1... c6 {[%clk 0:02:59.1]} 2. d4 {[%clk 0:02:48]} 2... d5
{[%clk 0:03:00]} 3. exd5 {[%clk 0:02:47.3]} 3... cxd5 {[%clk 0:03:00]} 4. Bd3
{[%clk 0:02:48]} 4... Nf6 {[%clk 0:03:00.3]} 5. h3 {[%clk 0:02:47]} 5... Qc7
{[%clk 0:02:59.9]} 6. Nf3 {[%clk 0:02:45.6]} 6... g6 {[%clk 0:02:59]} 7. O-O
{[%clk 0:02:43.9]} 7... Nc6 {[%clk 0:02:57.7]} 8. c3 {[%clk 0:02:41.3]} 8... Bf5
{[%clk 0:02:57.6]} 9. Be2 {[%clk 0:02:38.6]} 9... h6 {[%clk 0:02:53.6]} 10. Na3
{[%clk 0:02:38.6]} 10... a6 {[%clk 0:02:53.1]} 11. Nc2 {[%clk 0:02:38.8]} 11...
Bg7 {[%clk 0:02:53.2]} 12. Ne3 {[%clk 0:02:38.8]} 12... Be6 {[%clk 0:02:52.4]}
13. Re1 {[%clk 0:02:39.1]} 13... O-O {[%clk 0:02:52]} 14. Bd3 {[%clk 0:02:38.8]}
14... Rad8 {[%clk 0:02:44.3]} 15. a4 {[%clk 0:02:38.6]} 15... Bc8 {[%clk
0:02:44.3]} 16. Qe2 {[%clk 0:02:27.4]} 16... Ne8 {[%clk 0:02:22.3]} 17. Ng4
{[%clk 0:02:24.9]} 17... Kh7 {[%clk 0:02:20.8]} 18. Nge5 {[%clk 0:02:20.7]}
18... Nxe5 {[%clk 0:02:20.2]} 19. Nxe5 {[%clk 0:02:20.6]} 19... Nd6 {[%clk
0:02:18.7]} 20. h4 {[%clk 0:02:18.3]} 20... Bf5 {[%clk 0:02:18.3]} 21. h5 {[%clk
0:02:18.5]} 21... Qc8 {[%clk 0:02:06.3]} 22. hxg6+ {[%clk 0:02:16.1]} 22... fxg6
{[%clk 0:02:06.1]} 23. Bf4 {[%clk 0:02:03.8]} 23... Bxd3 {[%clk 0:01:59.5]} 24.
Nxd3 {[%clk 0:02:03.4]} 24... Rf7 {[%clk 0:01:58.5]} 25. Qe6 {[%clk 0:01:53.5]}
25... Qxe6 {[%clk 0:01:52]} 26. Rxe6 {[%clk 0:01:54.4]} 26... Nc4 {[%clk
0:01:47.3]} 27. Bg3 {[%clk 0:01:49.4]} 27... g5 {[%clk 0:01:42.5]} 28. Rae1
{[%clk 0:01:49.6]} 28... Bf6 {[%clk 0:01:41.8]} 29. b3 {[%clk 0:01:44.6]} 29...
Na5 {[%clk 0:01:41.1]} 30. Bc7 {[%clk 0:01:42.2]} 30... Nc6 {[%clk 0:01:32.8]}
31. Rxc6 {[%clk 0:01:41.2]} 31... Rc8 {[%clk 0:01:31.3]} 32. Rc5 {[%clk
0:01:41.2]} 32... b5 {[%clk 0:01:20.9]} 33. axb5 {[%clk 0:01:39.4]} 33... axb5
{[%clk 0:01:21.4]} 34. Be5 {[%clk 0:01:40.2]} 1-0

[Event "Early-Titled-Tuesday-Blitz-January-16-2024"]
[Site "Chess.com"]
[Date "2024.01.16"]
[Round "3"]
[White "Giorno"]
[Black "Grandelicious"]
[Result "0-1"]
[WhiteElo "2527"]
[BlackElo "2937"]
[TimeControl "180+1"]
[EndTime "8:26:25 PST"]
[Termination "Grandelicious won by resignation"]

1. Nf3 {[%clk 0:03:00.9]} 1... d6 {[%clk 0:02:58.9]} 2. b3 {[%clk 0:03:01.6]}
2... e5 {[%clk 0:02:58.8]} 3. Bb2 {[%clk 0:02:58.5]} 3... e4 {[%clk 0:02:56.4]}
4. Nd4 {[%clk 0:02:55.7]} 4... c5 {[%clk 0:02:45.5]} 5. Nb5 {[%clk 0:02:53.8]}
5... d5 {[%clk 0:02:43.5]} 6. e3 {[%clk 0:02:46.6]} 6... Nc6 {[%clk 0:02:39.9]}
7. c4 {[%clk 0:02:43.6]} 7... d4 {[%clk 0:02:36.5]} 8. Be2 {[%clk 0:01:42.4]}
8... a6 {[%clk 0:02:31.3]} 9. N5a3 {[%clk 0:01:40.8]} 9... Qg5 {[%clk
0:02:16.6]} 10. Bf1 {[%clk 0:01:38.2]} 10... Nf6 {[%clk 0:02:13.4]} 11. h4
{[%clk 0:01:37.9]} 11... Qf5 {[%clk 0:02:09.8]} 12. exd4 {[%clk 0:01:21.2]}
12... cxd4 {[%clk 0:02:04.6]} 13. Qe2 {[%clk 0:00:56.5]} 13... d3 {[%clk
0:01:47.9]} 14. Qe3 {[%clk 0:00:35.9]} 14... Bc5 {[%clk 0:01:43.7]} 15. Qg3
{[%clk 0:00:31]} 15... Ng4 {[%clk 0:01:44.2]} 0-1